bitfinex/quotes_BTCUSD_20220306
["timestamp","ask_amount","ask_price","bid_price","bid_amount"]
[1646592510751,0.2651,38818.0,38805.0,0.064454]
[1646592510946,0.15,38818.0,38808.0,0.06444663]
[1646592511147,0.02562,38817.0,38809.0,0.0474]
[1646592511344,0.02562,38819.0,38809.0,0.0474]
[1646592511746,0.19506154,38819.0,38811.0,0.064446]
[1646592511945,0.19506154,38819.0,38811.0,0.111846]
[1646592512402,0.36728573,38819.0,38811.0,0.111846]
[1646592512598,0.36728573,38819.0,38812.0,0.128868]
[1646592512797,0.36728573,38819.0,38814.0,0.064435]
[1646592512997,0.36728573,38819.0,38814.0,0.128871]
[1646592513200,0.19506154,38819.0,38814.0,0.128871]
[1646592514498,0.19506154,38819.0,38814.0,0.388871]
[1646592514702,0.00092248,38817.0,38814.0,0.388871]
[1646592515298,0.00092248,38817.0,38815.0,0.0474]
[1646592515702,0.00092248,38817.0,38816.0,0.3]
[1646592515939,0.00092248,38817.0,38816.0,0.0474]
[1646592517042,0.00092248,38817.0,38816.0,0.3474]
[1646592519138,0.10092248,38817.0,38816.0,0.3474]
[1646592519341,0.18337656,38830.0,38816.0,0.49236349]
[1646592519342,0.00020961,38830.0,38816.0,0.49236349]
[1646592519604,0.52477242,38837.0,38829.0,0.064411]
[1646592519605,0.4999,38836.0,38829.0,0.064411]
[1646592519793,0.3164,38837.0,38825.0,0.128821]
[1646592519794,0.11753404,38827.0,38825.0,0.14497165]
[1646592519993,0.11753404,38827.0,38826.0,0.0474]
[1646592521298,0.11753404,38827.0,38826.0,0.04765755]
[1646592524449,0.11865157,38827.0,38826.0,0.04765755]
[1646592524649,0.11865157,38827.0,38826.0,0.21893204]
[1646592524850,0.11865157,38827.0,38826.0,0.45893204]
[1646592525650,0.3,38826.0,38825.0,0.08867404]
[1646592525850,0.11865157,38827.0,38825.0,0.11511809]
[1646592526054,0.11865157,38827.0,38826.0,0.07384405]
[1646592531444,0.11865157,38827.0,38826.0,0.13825505]
[1646592536602,0.11865157,38827.0,38826.0,0.15152603]
[1646592541344,0.11865157,38827.0,38826.0,0.13825505]
[1646592541544,0.11865157,38827.0,38826.0,0.15179785]
[1646592542415,0.11865157,38827.0,38826.0,1.93219785]
[1646592542614,0.11865157,38827.0,38826.0,4.50443192]
[1646592542615,0.11522055,38827.0,38826.0,4.50443192]
[1646592542816,0.11522055,38827.0,38826.0,3.72403192]
[1646592543019,0.11522055,38827.0,38826.0,1.25179785]
[1646592543217,0.11522055,38827.0,38826.0,1.23825505]
[1646592543419,0.11522055,38827.0,38826.0,0.07384405]
[1646592543617,0.11522055,38827.0,38826.0,0.02644405]
[1646592543817,0.11522055,38827.0,38826.0,0.00025756]
[1646592548650,0.11522055,38827.0,38826.0,0.04765756]
[1646592548852,0.1,38829.0,38828.0,0.064402]
[1646592549052,0.1,38829.0,38828.0,0.13824605]
[1646592549455,0.1,38829.0,38828.0,0.30414492]
[1646592549690,0.1,38829.0,38828.0,0.40414492]
[1646592551593,0.1,38829.0,38828.0,0.07384405]
[1646592551791,0.1,38829.0,38821.0,0.128838]
[1646592551998,0.3,38828.0,38821.0,0.128838]
[1646592552192,0.1,38829.0,38825.0,0.00025756]
[1646592552393,0.1,38829.0,38824.0,0.18328732]
[1646592552594,0.1,38829.0,38827.0,0.064414]
[1646592553345,0.1,38829.0,38827.0,0.059414]
[1646592554946,0.1,38829.0,38828.0,0.15524005]
[1646592555747,0.1,38829.0,38826.0,0.28042049]
[1646592555748,0.1,38829.0,38826.0,0.0516]
[1646592556149,0.0591329,38821.0,38814.0,0.75547622]
[1646592556350,0.3,38820.0,38814.0,0.193255]
[1646592556550,1.1,38828.0,38810.0,0.5]
[1646592556551,0.3,38827.0,38810.0,0.5]
[1646592556749,0.95191457,38827.0,38810.0,0.5]
[1646592556949,0.02562,38825.0,38810.0,0.5]
[1646592557209,0.02562,38825.0,38803.0,0.1168]
[1646592557210,0.20694306,38815.0,38803.0,0.1168]
[1646592557407,0.3,38814.0,38803.0,0.1168]
[1646592557608,0.3,38814.0,38798.0,0.14501723]
[1646592557810,0.02562,38811.0,38799.0,0.5]
[1646592558010,0.41872,38811.0,38799.0,0.5]
[1646592558207,0.19496077,38807.0,38800.0,0.17834783]
[1646592558411,0.02562,38809.0,38800.0,0.17834783]
[1646592558613,0.32562,38809.0,38800.0,0.17334783]
[1646592558808,0.02562,38809.0,38795.0,0.01401564]
[1646592559012,0.02562,38809.0,38793.0,0.008]
[1646592559013,0.44354215,38808.0,38793.0,0.008]
[1646592559209,0.53399242,38807.0,38793.0,0.008]
[1646592559409,0.02562,38805.0,38793.0,0.17102679]
[1646592559610,0.02562,38801.0,38793.0,0.17102679]
[1646592559813,0.24021023,38801.0,38794.0,0.15690219]
[1646592560111,0.32562,38800.0,38794.0,0.15690219]
[1646592560311,0.49654128,38800.0,38794.0,0.15690219]
[1646592560712,0.3,38800.0,38794.0,0.15690219]
[1646592561372,0.32562,38800.0,38793.0,0.012]
[1646592561569,0.1289596,38798.0,38793.0,0.012]
[1646592561770,0.1289596,38798.0,38789.0,0.002]
[1646592561971,0.3,38797.0,38789.0,0.002]
[1646592562170,0.32562,38797.0,38789.0,0.002]
[1646592562376,0.20781488,38790.0,38789.0,0.002]
[1646592563169,0.20781488,38790.0,38787.0,0.003]
[1646592563370,0.02562,38789.0,38787.0,0.003]
[1646592563570,0.32562,38789.0,38787.0,0.003]
[1646592564595,0.34032653,38790.0,38787.0,0.003]
[1646592564799,0.006,38792.0,38787.0,0.003]
[1646592565396,0.006,38792.0,38788.0,0.00221659]
[1646592565697,0.19550277,38792.0,38788.0,0.00221659]
[1646592565896,0.18950277,38792.0,38788.0,0.00221659]
[1646592566297,0.06446766,38803.0,38788.0,0.066466]
[1646592566499,0.1139,38805.0,38789.0,0.3]
[1646592566703,0.1139,38805.0,38788.0,0.00221659]
[1646592566704,0.02562,38805.0,38788.0,0.00221659]
[1646592567298,1.04673531,38806.0,38789.0,0.19272205]
[1646592567299,0.15519993,38796.0,38789.0,0.19272205]
[1646592567899,0.15519993,38796.0,38787.0,0.00021668]
[1646592568344,0.15519993,38796.0,38790.0,0.16327814]
[1646592569946,0.15519993,38796.0,38786.0,0.004]
[1646592570148,0.15519993,38796.0,38790.0,0.00082818]
[1646592570347,0.18081993,38796.0,38790.0,0.00082818]
[1646592570549,0.02562,38794.0,38790.0,0.00058818]
[1646592571647,0.02562,38793.0,38790.0,0.00058818]
[1646592572096,0.15714687,38793.0,38790.0,0.00058818]
[1646592573296,0.18276687,38793.0,38790.0,0.00058818]
[1646592573496,0.02562,38793.0,38790.0,0.00058818]
[1646592574098,0.02062,38793.0,38790.0,0.00058818]
[1646592574298,0.19880504,38790.0,38785.0,0.00158818]
[1646592574497,0.19880504,38790.0,38787.0,0.001]
[1646592574697,0.36720197,38790.0,38787.0,0.001]
[1646592574899,0.19880504,38790.0,38787.0,0.001]
[1646592575097,0.02062,38796.0,38787.0,0.001]
[1646592575299,0.06447741,38797.0,38787.0,0.001]
[1646592575300,0.02562,38797.0,38787.0,0.001]
[1646592575697,0.001,38798.0,38787.0,0.001]
[1646592576150,0.18560772,38791.0,38787.0,0.001]
[1646592576750,0.18560772,38791.0,38785.0,0.00158818]
[1646592577050,0.18560772,38791.0,38790.0,0.18036965]
[1646592577250,0.18560772,38791.0,38785.0,0.00158818]
[1646592577451,0.18560772,38791.0,38786.0,0.00021633]
[1646592578154,0.27633566,38794.0,38789.0,0.18497638]
[1646592578349,0.02562,38797.0,38789.0,0.18497638]
[1646592578549,0.02562,38797.0,38789.0,0.1851927]
[1646592579152,0.18819398,38797.0,38789.0,0.33945528]
[1646592579351,0.21381398,38797.0,38789.0,0.33945528]
[1646592579595,0.51381398,38797.0,38789.0,0.33923896]
[1646592579796,0.21381398,38797.0,38789.0,0.33945529]
[1646592579997,0.18819398,38797.0,38789.0,0.33945529]
[1646592580395,0.0644789,38796.0,38789.0,0.33945529]
[1646592580794,0.0644789,38796.0,38789.0,0.18497638]
[1646592580998,0.0644789,38796.0,38789.0,0.18519271]
[1646592581194,0.0644789,38796.0,38789.0,0.00021633]
[1646592581195,0.02562,38795.0,38789.0,0.00021633]
[1646592581402,0.0644789,38796.0,38789.0,0.00021633]
[1646592581995,0.0644789,38796.0,38786.0,0.17850706]
[1646592582195,0.17332902,38791.0,38786.0,0.17850706]
[1646592582394,0.19894902,38791.0,38785.0,0.00158818]
[1646592582596,0.19394902,38791.0,38785.0,0.00158818]
[1646592582995,0.16832902,38791.0,38785.0,0.00158818]
[1646592583448,0.18151921,38788.0,38785.0,0.00158818]
[1646592584047,0.3,38790.0,38785.0,0.00158818]
[1646592584248,0.16832902,38791.0,38785.0,0.00158818]
[1646592584449,0.3,38790.0,38785.0,0.00158818]
[1646592584649,0.32562,38790.0,38785.0,0.00158818]
[1646592584852,0.33,38787.0,38784.0,0.00042818]
[1646592585055,0.33,38787.0,38783.0,0.002]
[1646592585056,0.02562,38785.0,38783.0,0.002]
[1646592585354,0.02562,38783.0,38780.0,0.001]
[1646592585551,0.18177482,38781.0,38780.0,0.001]
[1646592585754,0.95,38780.0,38777.0,0.77315401]
[1646592585954,0.18177482,38781.0,38777.0,0.77315401]
[1646592585955,0.15615482,38781.0,38777.0,0.77315401]
[1646592586352,0.15615482,38781.0,38779.0,0.17756225]
[1646592586553,0.05856,38786.0,38779.0,0.17756225]
[1646592587600,0.21353718,38786.0,38779.0,0.4162307]
[1646592588000,0.6,38785.0,38779.0,0.4451867]
[1646592588199,0.21353718,38786.0,38781.0,0.00021653]
[1646592588801,0.05856,38786.0,38785.0,0.16060552]
[1646592589201,0.05856,38786.0,38785.0,0.21220552]
[1646592590101,0.05856,38786.0,38785.0,0.23220552]
[1646592590300,0.05856,38786.0,38785.0,0.0716]
[1646592590502,0.05856,38786.0,38785.0,0.02]
[1646592590955,0.57497774,38786.0,38785.0,0.02]
[1646592591152,0.60059774,38786.0,38785.0,0.02]
[1646592591350,0.80540357,38786.0,38785.0,0.02]
[1646592591548,0.57497774,38786.0,38785.0,0.02]
[1646592591748,0.27497774,38786.0,38785.0,0.02]
[1646592596101,0.30059774,38786.0,38785.0,0.02]
[1646592596297,0.27497774,38786.0,38785.0,0.02]
[1646592596503,0.21641774,38786.0,38785.0,0.02]
[1646592596698,0.06649002,38791.0,38785.0,0.02]
[1646592596913,0.002,38791.0,38786.0,0.01466698]
[1646592597099,0.002,38791.0,38787.0,0.0516]
[1646592597300,0.002,38791.0,38788.0,1.164861]
[1646592597500,0.002,38791.0,38790.0,0.01400162]
[1646592597701,0.002,38791.0,38790.0,0.73330798]
[1646592597898,0.348,38807.0,38794.0,0.01658735]
[1646592598099,0.4557,38811.0,38795.0,0.0516]
[1646592598352,0.4557,38811.0,38797.0,0.064449]
[1646592598547,0.4557,38811.0,38801.0,0.064448]
[1646592598751,0.20041274,38813.0,38800.0,0.128896]
[1646592598948,0.21743886,38804.0,38800.0,0.128896]
[1646592599348,0.21743886,38804.0,38798.0,0.0516]
[1646592600151,0.2018311,38801.0,38798.0,0.0516]
[1646592600348,0.21743886,38804.0,38798.0,0.0516]
[1646592600548,0.24305886,38804.0,38798.0,0.0516]
[1646592601357,0.16024512,38799.0,38798.0,0.0516]
[1646592602194,0.16024512,38799.0,38789.0,0.00021648]
[1646592602398,0.16024512,38799.0,38798.0,0.02]
[1646592603294,0.23356196,38803.0,38798.0,0.02]
[1646592603495,0.02562,38803.0,38798.0,0.02]
[1646592604395,0.21743886,38804.0,38798.0,0.02]
[1646592604793,0.21743886,38804.0,38798.0,0.28]
[1646592605395,0.17534654,38802.0,38798.0,0.28]
[1646592606046,0.21743886,38804.0,38798.0,0.28]
[1646592606849,0.42538082,38804.0,38798.0,0.28]
[1646592607049,0.42538082,38804.0,38798.0,0.43894536]
[1646592607247,0.21743886,38804.0,38798.0,0.28]
[1646592607447,0.21743886,38804.0,38798.0,0.26]
[1646592607649,0.21743886,38804.0,38801.0,0.02]
[1646592607850,0.20794196,38806.0,38801.0,0.02]
[1646592608451,0.20794196,38807.0,38801.0,0.3487113]
[1646592608650,0.25992745,38809.0,38801.0,0.2842553]
[1646592608651,0.20894196,38809.0,38801.0,0.2842553]
[1646592608851,0.001,38809.0,38801.0,0.5842553]
[1646592609051,0.001,38809.0,38806.0,0.15850356]
[1646592609453,0.001,38809.0,38807.0,0.19259364]
[1646592609717,0.001,38809.0,38807.0,0.25703964]
[1646592610021,0.20794196,38814.0,38808.0,0.3516]
[1646592610221,0.25992745,38816.0,38808.0,0.3516]
[1646592610222,0.20794196,38816.0,38808.0,0.3516]
[1646592610423,0.20794196,38817.0,38808.0,0.3516]
[1646592610622,0.52126629,38818.0,38813.0,0.18512344]
[1646592610822,0.15539541,38818.0,38813.0,0.128872]
[1646592611419,0.36333737,38818.0,38813.0,0.128872]
[1646592611926,0.36333737,38818.0,38813.0,0.128871]
[1646592612322,0.15539541,38818.0,38813.0,0.128871]
[1646592613023,0.15539541,38818.0,38815.0,0.02]
[1646592613225,0.20794196,38821.0,38815.0,0.064432]
[1646592613467,0.31191294,38826.0,38816.0,0.06543735]
[1646592613468,0.20794196,38826.0,38816.0,0.06543735]
[1646592613667,0.00020175,38820.0,38817.0,0.0516]
[1646592614072,0.00020175,38820.0,38818.0,0.2041789]
[1646592614275,0.00020175,38820.0,38819.0,0.07747759]
[1646592614473,0.31191294,38834.0,38819.0,0.07747759]
[1646592614474,0.20794196,38831.0,38819.0,1.35110159]
[1646592614668,0.20794196,38835.0,38820.0,0.31642189]
[1646592614868,0.20794196,38836.0,38823.0,0.02562]
[1646592615072,0.20794196,38837.0,38824.0,0.0516]
[1646592615371,0.5936,38839.0,38824.0,0.0516]
[1646592615372,0.16823007,38834.0,38831.0,0.16383133]
[1646592615570,0.16823007,38834.0,38828.0,0.0516]
[1646592615771,1.1,38837.0,38830.0,0.064405]
[1646592615971,1.4,38837.0,38830.0,0.064405]
[1646592616170,0.00020172,38834.0,38830.0,0.064405]
[1646592616571,0.00020172,38834.0,38831.0,0.19279174]
[1646592616772,0.00020172,38834.0,38831.0,0.39559646]
[1646592616974,0.02562,38844.0,38832.0,0.128797]
[1646592617206,0.00012557,38834.0,38833.0,0.3]
[1646592617405,0.00012557,38834.0,38832.0,0.128797]
[1646592617805,0.00012557,38834.0,38832.0,0.49319382]
[1646592618009,0.00012557,38834.0,38833.0,0.3]
[1646592618206,0.1578011,38843.0,38833.0,0.3]
[1646592618408,0.0001254,38835.0,38833.0,0.3]
[1646592618608,0.0001254,38835.0,38832.0,0.19319382]
[1646592618807,0.0001254,38835.0,38833.0,0.128794]
[1646592619209,0.0001254,38835.0,38833.0,0.064398]
[1646592619407,0.17105191,38837.0,38831.0,0.57598846]
[1646592619620,0.0001254,38836.0,38831.0,0.57598846]
[1646592620208,0.0001254,38836.0,38831.0,0.70479634]
[1646592620611,0.16174314,38842.0,38831.0,0.64038934]
[1646592620848,0.0002165,38835.0,38831.0,0.57598846]
[1646592621252,0.0002165,38835.0,38831.0,0.58884846]
[1646592621454,0.0002165,38835.0,38832.0,0.064399]
[1646592621650,0.00086587,38841.0,38832.0,0.064399]
[1646592621852,0.33124877,38842.0,38834.0,0.064401]
[1646592622053,0.0002165,38835.0,38834.0,0.064401]
[1646592622453,0.0002165,38835.0,38831.0,0.06446]
[1646592622654,0.0002165,38835.0,38831.0,0.0516]
[1646592622655,0.3002165,38835.0,38831.0,0.0516]
[1646592623054,0.3002165,38835.0,38830.0,0.004]
[1646592623055,0.32562,38835.0,38830.0,0.004]
[1646592623257,0.32562,38835.0,38820.0,0.01286]
[1646592623258,0.3258365,38835.0,38820.0,0.01286]
[1646592623455,0.15913133,38824.0,38819.0,0.15236829]
[1646592623653,0.15913133,38824.0,38817.0,0.1747246]
[1646592623654,0.15913133,38824.0,38820.0,0.01286]
[1646592623854,0.15913133,38824.0,38818.0,0.01286]
[1646592624256,0.15413133,38824.0,38818.0,0.01286]
[1646592624454,0.00021653,38823.0,38818.0,0.01286]
[1646592624706,0.30021653,38823.0,38818.0,0.01286]
[1646592624903,0.02562,38822.0,38814.0,0.006]
[1646592625300,0.02562,38822.0,38818.0,0.26]
[1646592625701,0.00020821,38820.0,38818.0,0.26]
[1646592626502,0.17083508,38819.0,38818.0,0.26]
[1646592626903,0.3,38823.0,38818.0,0.26]
[1646592626904,0.00020821,38821.0,38818.0,0.26]
[1646592627703,0.00020821,38821.0,38818.0,0.32442324]
[1646592627904,0.45899136,38828.0,38822.0,0.064423]
[1646592628103,0.0002082,38821.0,38819.0,0.17769605]
[1646592628959,0.3,38826.0,38819.0,0.17769605]
[1646592629159,0.1,38827.0,38819.0,0.17769605]
[1646592629359,0.00021653,38822.0,38819.0,0.17769605]
[1646592629858,0.00021653,38822.0,38818.0,0.388843]
[1646592630063,0.00021653,38822.0,38818.0,0.26]
[1646592630261,0.19665464,38824.0,38818.0,0.26]
[1646592630462,0.00021653,38822.0,38818.0,0.26]
[1646592630659,0.18614013,38821.0,38818.0,0.26]
[1646592631064,0.711514,38820.0,38818.0,0.26]
[1646592631260,0.18614013,38821.0,38818.0,0.26]
[1646592631261,0.76562426,38819.0,38818.0,0.26]
[1646592631661,0.46562426,38819.0,38818.0,0.26]
[1646592632299,0.411514,38819.0,38818.0,0.26]
[1646592632505,0.06444435,38820.0,38818.0,0.26]
[1646592632704,0.16444435,38820.0,38818.0,0.26]
[1646592633105,0.16444435,38820.0,38809.0,0.19238795]
[1646592633106,0.23888929,38816.0,38815.0,0.19877852]
[1646592633503,0.23888929,38816.0,38812.0,0.20201637]
[1646592633504,0.43272259,38816.0,38812.0,0.20201637]
[1646592633705,0.43272259,38816.0,38809.0,0.06444]
[1646592633706,0.43272259,38816.0,38806.0,0.3]
[1646592633905,0.43272259,38816.0,38805.0,0.128879]
[1646592634505,0.43272259,38816.0,38812.0,0.19207851]
[1646592634907,0.23888929,38816.0,38812.0,0.19207851]
[1646592635856,0.23888929,38816.0,38812.0,0.45207851]
[1646592636056,0.23888929,38816.0,38812.0,0.58094851]
[1646592636256,0.23888929,38816.0,38812.0,0.45207851]
[1646592637057,0.42776197,38816.0,38812.0,0.45207851]
[1646592637257,0.23888929,38816.0,38812.0,0.45207851]
[1646592639801,0.23888929,38816.0,38812.0,0.51651451]
[1646592640703,0.23888929,38816.0,38812.0,0.58094851]
[1646592644152,0.23888929,38816.0,38813.0,0.3]
[1646592644456,0.23888929,38816.0,38814.0,0.0516]
[1646592644655,0.23888929,38816.0,38815.0,0.364418]
[1646592644951,0.23888929,38816.0,38815.0,0.416018]
[1646592645953,0.23888929,38816.0,38815.0,0.41627561]
[1646592647912,0.01244263,38814.0,38813.0,0.428838]
[1646592648112,0.01244263,38814.0,38813.0,0.54218748]
[1646592648911,0.01244263,38814.0,38813.0,0.47777748]
[1646592649110,0.01244263,38814.0,38813.0,0.17777748]
[1646592649311,0.01244263,38814.0,38813.0,0.47777748]
[1646592649711,0.01244263,38814.0,38813.0,0.52937748]
[1646592654058,0.01244263,38814.0,38813.0,0.62937748]
[1646592655107,0.01244263,38814.0,38813.0,0.32937748]
[1646592656808,0.01244263,38814.0,38813.0,0.216028]
[1646592657006,0.01244263,38814.0,38813.0,0.00025762]
[1646592657206,0.01244263,38814.0,38812.0,0.195628]
[1646592657207,0.07721238,38813.0,38812.0,0.195628]
[1646592657406,0.37721238,38813.0,38812.0,0.195628]
[1646592658007,0.54530561,38813.0,38812.0,0.195628]
[1646592658479,0.24530561,38813.0,38812.0,0.195628]
[1646592658673,0.54530561,38813.0,38812.0,0.195628]
[1646592660479,0.01244263,38814.0,38812.0,0.195628]
[1646592660881,0.01175902,38814.0,38812.0,0.195628]
[1646592665710,0.02562,38813.0,38812.0,0.195628]
[1646592665974,0.32562,38813.0,38812.0,0.195628]
[1646592666376,0.32562,38813.0,38812.0,0.190628]
[1646592666576,0.32562,38813.0,38812.0,0.090628]
[1646592666774,0.53417928,38813.0,38812.0,0.090628]
[1646592667374,0.32562,38813.0,38812.0,0.090628]
[1646592667573,0.390081,38813.0,38812.0,0.090628]
[1646592667773,0.59870267,38813.0,38812.0,0.090628]
[1646592668375,0.02562,38797.0,38793.0,0.3165988]
[1646592668575,0.02562,38797.0,38789.0,0.00118683]
[1646592668576,0.02562,38795.0,38789.0,0.00118683]
[1646592668774,0.02562,38795.0,38789.0,0.001]
[1646592668775,0.02562,38793.0,38789.0,0.001]
[1646592668978,0.02562,38791.0,38789.0,0.00118731]
[1646592669175,0.07722,38791.0,38789.0,0.00118731]
[1646592669376,0.19498494,38790.0,38789.0,0.00118731]
[1646592669619,0.02562,38790.0,38789.0,0.00118731]
[1646592670119,0.02562,38790.0,38789.0,0.001]
[1646592670821,0.32562,38790.0,38789.0,0.001]
[1646592671022,0.3,38790.0,38789.0,0.001]
[1646592671422,0.46795471,38790.0,38789.0,0.001]
[1646592671629,0.3,38790.0,38789.0,0.001]
[1646592671821,0.02562,38791.0,38789.0,0.001]
[1646592672021,0.064487,38797.0,38789.0,0.001]
[1646592672022,0.02562,38798.0,38789.0,0.001]
[1646592672323,0.32562,38798.0,38789.0,0.001]
[1646592672523,0.15813635,38795.0,38790.0,0.16883072]
[1646592672721,0.15813635,38795.0,38789.0,0.001]
[1646592672722,0.1,38797.0,38791.0,0.19832205]
[1646592673122,0.06447779,38796.0,38791.0,0.19832205]
[1646592673556,0.3,38801.0,38791.0,0.19832205]
[1646592673755,0.02562,38802.0,38793.0,0.20830247]
[1646592674356,0.06447028,38801.0,38793.0,0.20830247]
[1646592674555,0.52121831,38801.0,38793.0,0.20830247]
[1646592674956,0.06447028,38801.0,38793.0,0.20830247]
[1646592675959,0.18846263,38799.0,38793.0,0.20830247]
[1646592676158,0.25293596,38799.0,38793.0,0.46830247]
[1646592676358,0.25293596,38799.0,38793.0,0.26]
[1646592677214,0.25293596,38799.0,38793.0,0.44190238]
[1646592677414,0.06447333,38799.0,38793.0,0.44190238]
[1646592677615,0.1,38802.0,38793.0,0.44190238]
[1646592677616,0.1,38801.0,38793.0,0.44190238]
[1646592677815,0.85,38801.0,38791.0,0.19832205]
[1646592678017,0.1,38802.0,38791.0,0.19832205]
[1646592678223,0.3,38806.0,38791.0,0.19832205]
[1646592678224,0.1,38805.0,38791.0,0.19832205]
[1646592678419,0.3,38806.0,38801.0,0.18616717]
[1646592678420,0.21364416,38803.0,38801.0,0.18616717]
[1646592678617,0.24478982,38808.0,38801.0,0.18616717]
[1646592678818,0.3,38807.0,38801.0,0.18616717]
[1646592679618,0.17511917,38805.0,38801.0,0.18616717]
[1646592680222,0.3,38812.0,38801.0,0.18616717]
[1646592680422,0.01175902,38814.0,38801.0,0.25061317]
[1646592680858,0.01175902,38814.0,38801.0,0.55061317]
[1646592681060,0.00175902,38814.0,38802.0,0.0516]
[1646592681261,0.16995189,38814.0,38808.0,0.21566404]
[1646592682258,0.00175902,38814.0,38808.0,0.21566404]
[1646592682864,0.00175902,38814.0,38803.0,0.3]
[1646592683062,0.02562,38812.0,38802.0,0.0516]
[1646592683263,0.18227669,38805.0,38799.0,0.01288]
[1646592685207,0.3,38804.0,38788.0,0.4089]
[1646592685412,0.12895764,38803.0,38789.0,0.05280296]
[1646592685608,0.12895764,38803.0,38789.0,0.0526]
[1646592685609,0.3,38802.0,38789.0,0.0526]
[1646592685910,0.36447882,38802.0,38789.0,0.05280294]
[1646592686307,0.3,38802.0,38794.0,0.17616295]
[1646592686708,0.06447012,38802.0,38794.0,0.17616295]
[1646592686907,0.3,38801.0,38794.0,0.17616295]
[1646592687908,0.3,38804.0,38800.0,0.15646653]
[1646592688112,0.4,38805.0,38800.0,0.15646653]
[1646592689359,0.001,38809.0,38800.0,0.15646653]
[1646592689559,0.001,38809.0,38800.0,0.20806653]
[1646592690157,0.47334516,38814.0,38807.0,0.17240085]
[1646592691358,0.47334516,38814.0,38803.0,0.128882]
[1646592691560,0.47334516,38814.0,38800.0,0.0516]
[1646592691960,0.19596413,38809.0,38797.0,0.3396]
[1646592692211,0.3,38808.0,38792.0,0.6137]
[1646592692412,0.20285638,38803.0,38796.0,0.19130189]
[1646592692813,0.20285638,38803.0,38789.0,0.00120203]
[1646592693014,0.20285638,38803.0,38789.0,0.001]
[1646592693015,0.21871273,38801.0,38789.0,0.001]
[1646592693214,0.32562,38800.0,38789.0,0.00120199]
[1646592693613,0.39009373,38800.0,38789.0,0.00120199]
[1646592694012,0.39009373,38800.0,38790.0,0.19841936]
[1646592694313,0.39009373,38800.0,38794.0,0.18804174]
[1646592694514,0.3,38800.0,38794.0,0.18804174]
[1646592696960,0.20285638,38803.0,38794.0,0.18804174]
[1646592696961,0.4,38802.0,38794.0,0.18804174]
[1646592697163,0.3,38802.0,38794.0,0.18804174]
[1646592697360,0.3,38802.0,38794.0,0.25250974]
[1646592697361,0.1,38802.0,38794.0,0.25250974]
[1646592697563,0.001,38806.0,38794.0,0.51250974]
[1646592697764,0.001,38806.0,38798.0,0.12891244]
[1646592698161,0.1,38807.0,38798.0,0.12891244]
[1646592698361,0.1,38807.0,38805.0,0.20881902]
[1646592698561,0.34331033,38804.0,38801.0,0.27900242]
[1646592699612,0.34331033,38804.0,38802.0,0.0516]
[1646592699812,0.34331033,38804.0,38803.0,0.128892]
[1646592700020,0.34331033,38804.0,38803.0,0.35004796]
[1646592700021,0.01815686,38804.0,38803.0,0.35004796]
[1646592700213,0.01815686,38804.0,38803.0,0.65030564]
[1646592700413,0.01815686,38804.0,38803.0,0.35030564]
[1646592700910,0.01315686,38804.0,38803.0,0.35030564]
[1646592702012,0.01315686,38804.0,38803.0,0.65030564]
[1646592704776,0.01315686,38804.0,38803.0,0.75030564]
[1646592705577,0.01315686,38804.0,38803.0,0.90030564]
[1646592705980,0.00175902,38814.0,38804.0,0.67562]
[1646592706178,0.00175902,38814.0,38809.0,0.01233035]
[1646592706378,0.00175902,38814.0,38810.0,0.0516]
[1646592706980,0.00175902,38814.0,38812.0,0.19067013]
[1646592707808,0.00175902,38814.0,38806.0,0.3]
[1646592707809,0.05130897,38808.0,38806.0,0.3]
[1646592708008,0.05130897,38808.0,38807.0,0.16523783]
[1646592708210,0.05130897,38808.0,38807.0,0.46523783]
[1646592708608,0.05130897,38808.0,38807.0,0.66441963]
[1646592709011,0.05130897,38808.0,38807.0,0.52967283]
[1646592710510,0.05130897,38808.0,38807.0,0.52941515]
[1646592710968,0.04630897,38808.0,38807.0,0.52941515]
[1646592712161,0.04630897,38808.0,38807.0,0.16498015]
[1646592712360,0.04630897,38808.0,38807.0,0.46498015]
[1646592712661,0.04630897,38808.0,38807.0,0.16496554]
[1646592712860,0.04630897,38808.0,38807.0,0.16496116]
[1646592713063,0.04630897,38808.0,38807.0,0.0516]
[1646592713263,0.04630897,38808.0,38807.0,0.24513564]
[1646592713464,0.04630897,38808.0,38807.0,0.58332729]
[1646592714706,0.04630897,38808.0,38807.0,0.88332729]
[1646592715507,0.04630897,38808.0,38807.0,1.88332729]
[1646592716909,0.04630897,38808.0,38807.0,2.14332729]
[1646592717610,0.04630897,38808.0,38807.0,1.97045037]
[1646592717810,0.04630897,38808.0,38807.0,0.97045037]
[1646592718210,0.04630897,38808.0,38807.0,1.97045037]
[1646592718474,0.04630897,38808.0,38807.0,1.31185764]
[1646592718675,0.04630897,38808.0,38807.0,0.31185764]
[1646592721576,0.04630897,38808.0,38807.0,0.37629864]
[1646592722216,0.04630897,38808.0,38807.0,0.86701355]
[1646592724020,0.04622818,38808.0,38807.0,0.86701355]
[1646592724420,0.00175902,38814.0,38807.0,0.86701355]
[1646592724621,0.00175902,38814.0,38810.0,0.064422]
[1646592724823,0.00175902,38814.0,38811.0,0.3]
[1646592725721,0.00175902,38814.0,38812.0,0.19311062]
[1646592725979,0.0001881,38820.0,38815.0,0.5]
[1646592726184,0.0001881,38820.0,38816.0,0.3516]
[1646592726483,0.0001881,38820.0,38819.0,0.00025764]
[1646592726680,0.17224516,38828.0,38819.0,0.05185764]
[1646592726880,0.17224516,38828.0,38819.0,0.0516]
[1646592727078,0.00018811,38820.0,38819.0,0.116015]
[1646592727278,0.00018811,38820.0,38819.0,0.11627264]
[1646592727679,0.00018811,38820.0,38819.0,0.37627264]
[1646592727879,0.19068943,38829.0,38819.0,0.37627264]
[1646592728079,0.19196775,38830.0,38827.0,0.064414]
[1646592728279,0.16634775,38830.0,38827.0,0.064414]
[1646592728479,0.19062013,38835.0,38823.0,0.128828]
[1646592728679,0.17862565,38831.0,38824.0,0.17986172]
[1646592729083,0.17862565,38831.0,38819.0,0.3516]
[1646592729280,0.00018809,38829.0,38819.0,0.3516]
[1646592729480,0.00018809,38829.0,38827.0,0.064413]
[1646592730322,0.40040174,38837.0,38826.0,0.064404]